bitfinex/quotes_ETHUSD_20241129
["timestamp","ask_amount","ask_price","bid_price","bid_amount"]
[1732882318628,3.441279,3596.9,3596.4,0.7708]
[1732882319005,0.661049,3596.9,3596.4,0.7708]
[1732882319411,0.661049,3596.9,3596.4,3.55135]
[1732882319790,3.0,3597.0,3596.4,3.55135]
[1732882320785,5.78011,3597.0,3596.4,0.7708]
[1732882321987,2.77967,3597.6,3596.8,2.78021]
[1732882322188,0.8172,3597.7,3596.5,0.758]
[1732882322387,2.7799,3597.3,3596.5,0.758]
[1732882322593,2.77998,3597.2,3596.5,3.53847]
[1732882322794,2.7799,3597.3,3596.5,0.758]
[1732882323131,3.335862,3597.3,3596.6,2.78039]
[1732882324327,3.335862,3597.3,3596.7,2.7803]
[1732882325020,0.555962,3597.3,3596.7,2.7803]
[1732882325220,3.0,3597.4,3596.8,0.7932]
[1732882325409,2.77959,3597.7,3597.0,2.78008]
[1732882325906,2.77963,3597.6,3597.0,2.78008]
[1732882326660,2.77963,3597.6,3597.1,0.07672471]
[1732882327567,2.77948,3597.8,3597.1,0.07672471]
[1732882327716,0.352978,3597.7,3597.0,2.78007]
[1732882327915,0.352978,3597.7,3597.2,0.07666228]
[1732882328140,3.132538,3597.7,3597.1,0.07672471]
[1732882328440,3.132538,3597.7,3597.0,2.78007]
[1732882328441,3.132538,3597.7,3597.2,0.07666228]
[1732882328645,3.132538,3597.7,3597.0,2.78007]
[1732882328864,3.132538,3597.7,3597.3,0.07659985]
[1732882329160,0.3882838,3597.6,3597.3,0.8003]
[1732882329333,0.352978,3597.7,3597.4,0.07653743]
[1732882330342,3.56079,3598.2,3597.4,0.07653743]
[1732882330343,3.0,3598.1,3597.4,0.07653743]
[1732882330680,2.77915,3598.3,3597.6,2.77958]
[1732882330962,3.5846,3598.5,3597.8,0.7887]
[1732882331164,2.77879,3598.7,3597.8,0.7887]
[1732882331165,2.77879,3598.7,3598.0,2.77926]
[1732882331471,3.58436,3598.8,3598.1,2.85265258]
[1732882331645,2.77878,3598.7,3598.1,2.85265258]
[1732882332172,2.77878,3598.7,3598.1,0.07341258]
[1732882332672,2.77878,3598.7,3598.2,0.07335018]
[1732882332972,3.0,3598.6,3598.0,2.7793]
[1732882333180,3.0,3598.6,3598.3,0.07328779]
[1732882333464,3.23487846,3598.7,3598.4,0.0732254]
[1732882333667,3.23487846,3598.7,3598.0,2.7793]
[1732882333898,2.77878,3598.7,3598.1,0.07341258]
[1732882334431,0.8056,3598.8,3598.1,2.77924]
[1732882334656,2.77863,3598.9,3598.2,3.66655018]
[1732882335065,3.0,3598.8,3598.2,3.66655018]
[1732882335471,3.0,3598.8,3598.3,2.77908]
[1732882335653,2.77857,3599.0,3598.3,2.85236779]
[1732882336188,3.0,3598.9,3598.3,2.85236779]
[1732882336393,3.0,3598.9,3598.3,0.07328779]
[1732882336677,3.0,3598.9,3598.2,0.8141]
[1732882336982,2.77855,3599.0,3598.4,0.07302957]
[1732882337182,3.0,3598.9,3598.3,2.85211196]
[1732882337343,3.0,3598.9,3598.5,0.07296718]
[1732882337543,3.0,3598.9,3598.4,0.07302957]
[1732882337777,3.0,3598.9,3598.6,0.0729048]
[1732882337956,2.77855,3599.0,3598.5,0.07296718]
[1732882338171,2.77855,3599.0,3598.7,0.07284242]
[1732882338379,2.77878,3598.7,3598.6,0.0729048]
[1732882338565,2.77878,3598.7,3598.2,0.8141]
[1732882339412,2.77863,3598.9,3598.2,3.59323]
[1732882340104,2.77863,3598.9,3598.3,2.77907]
[1732882340464,3.0,3599.2,3598.4,2.779]
[1732882340707,2.77848,3599.1,3598.4,2.77895]
[1732882341452,2.77848,3599.1,3598.5,0.07296718]
[1732882341809,3.956234,3599.2,3598.5,0.07296718]
[1732882342007,3.784,3599.4,3598.8,2.77868]
[1732882342181,6.56229,3599.4,3598.7,2.77877]
[1732882342507,6.56229,3599.4,3598.8,0.07278004]
[1732882342895,3.784,3599.4,3598.8,0.07278004]
[1732882343205,3.0,3599.3,3598.8,0.07278004]
[1732882343367,3.0,3599.3,3598.8,2.85147004]
[1732882344369,5.77831,3599.3,3598.8,0.07278004]
[1732882344566,0.934048,3599.3,3598.8,0.07278004]
[1732882344813,0.934048,3599.3,3598.8,2.77863]
[1732882344995,0.934048,3599.3,3598.6,3.56995]
[1732882344996,3.0,3599.4,3598.9,2.85133767]
[1732882345204,3.57008,3599.9,3599.1,2.77845]
[1732882345402,3.57008,3599.9,3599.1,5.82357776]
[1732882345619,3.57008,3599.9,3599.2,0.07235672]
[1732882345788,3.57008,3599.9,3599.2,2.85067672]
[1732882345994,3.57008,3599.9,3599.2,0.07235672]
[1732882346196,2.77801,3599.7,3599.2,0.07235672]
[1732882346723,2.77811,3599.6,3599.0,3.59879]
[1732882346884,2.77811,3599.6,3599.3,0.07220319]
[1732882347089,2.77811,3599.6,3599.0,3.59879]
[1732882347420,2.77811,3599.6,3599.1,0.07232791]
[1732882349608,2.77793,3599.8,3599.1,2.85078791]
[1732882349812,2.77793,3599.8,3599.1,3.4957457]
[1732882350417,0.7922,3599.9,3599.2,2.77832]
[1732882350623,0.00226666,3600.0,3599.4,2.77817]
[1732882350932,0.00226666,3600.0,3599.3,0.8322]
[1732882350933,0.00226666,3600.0,3599.5,2.77816]
[1732882351221,2.78004666,3600.0,3599.5,0.07207848]
[1732882351720,2.77786,3599.9,3599.5,0.07207848]
[1732882351931,2.77798,3599.8,3599.5,0.07207848]
[1732882352086,2.77798,3599.8,3599.3,0.8322]
[1732882352287,2.77798,3599.8,3599.6,0.07201614]
[1732882352524,2.77798,3599.8,3599.3,0.8322]
[1732882352749,5.55787666,3600.0,3599.7,0.07195379]
[1732882353032,2.77799,3599.8,3599.3,0.8322]
[1732882353500,2.77789,3599.9,3599.3,0.8322]
[1732882353705,2.77789,3599.9,3599.4,0.07214084]
[1732882354779,2.77795,3599.8,3599.4,0.07214084]
[1732882355117,2.77814,3599.6,3599.4,0.07214084]
[1732882355430,2.77795,3599.8,3599.4,0.07214084]
[1732882355926,2.77787,3599.9,3599.4,0.07214084]
[1732882357142,2.77793,3599.8,3599.4,0.07214084]
[1732882357628,2.77814,3599.6,3599.4,0.07214084]
[1732882358032,2.77793,3599.8,3599.4,0.07214084]
[1732882360253,2.77801,3599.7,3599.4,0.07214084]
[1732882361019,2.78007666,3600.0,3599.4,0.07214084]
[1732882361471,2.78007666,3600.0,3599.4,2.85035084]
[1732882361823,0.00226666,3600.0,3599.4,0.07214084]
[1732882362055,2.77786,3599.9,3599.4,0.07214084]
[1732882363655,0.00226666,3600.0,3599.5,2.77811]
[1732882363857,0.00226666,3600.0,3599.6,0.0719578]
[1732882365256,0.00226666,3600.0,3599.9,5.02581521]
[1732882365559,0.00226666,3600.0,3599.9,5.09749243]
[1732882368373,0.00226666,3600.0,3599.9,5.12526517]
[1732882368535,0.00226666,3600.0,3599.9,5.91558569]
[1732882368754,0.00226666,3600.0,3599.9,5.88781295]
[1732882373240,0.00226666,3600.0,3599.9,4.41944774]
[1732882373552,0.00226666,3600.0,3599.9,5.09749243]
[1732882373975,0.00226666,3600.0,3599.9,0.85127722]
[1732882374183,0.00226666,3600.0,3599.9,0.07167722]
[1732882374471,0.00226666,3600.0,3599.9,2.84952722]
[1732882374682,0.00226666,3600.0,3599.9,2.77785]
[1732882374847,0.00226666,3600.0,3599.9,3.6337268]
[1732882376180,0.00226666,3600.0,3599.9,6.66866254]
[1732882379754,0.00226666,3600.0,3599.9,7.43386254]
[1732882381056,2.77647,3601.7,3601.1,2.77686]
[1732882381255,3.58729,3601.8,3601.3,2.77675]
[1732882381486,3.58729,3601.8,3601.1,6.56589574]
[1732882381487,3.58729,3601.8,3601.2,0.07068011]
[1732882381691,3.58729,3601.8,3601.4,0.07055553]
[1732882381996,3.58729,3601.8,3601.2,3.44048758]
[1732882382295,3.58729,3601.8,3601.5,0.07043618]
[1732882382498,3.58729,3601.8,3601.2,3.44048758]
[1732882382659,2.77646,3601.7,3601.6,0.07037391]
[1732882382868,2.77646,3601.7,3601.2,0.66365758]
[1732882383061,2.77646,3601.7,3601.6,0.07037391]
[1732882383275,2.77614,3602.2,3601.5,2.77655]
[1732882383474,2.77614,3602.2,3601.5,0.64751433]
[1732882383698,2.77622,3602.1,3601.6,0.07037391]
[1732882383902,2.77628,3602.0,3601.6,0.07037391]
[1732882385266,2.77614,3602.2,3601.6,2.77653]
[1732882385594,2.77614,3602.2,3601.7,0.89991163]
[1732882386080,3.0,3602.3,3601.7,0.89991163]
[1732882386401,2.77602,3602.3,3601.7,1.84871737]
[1732882386781,0.7776,3602.4,3601.8,2.77637]
[1732882386971,0.7776,3602.4,3601.7,1.84871737]
[1732882387171,2.77603,3602.3,3601.7,4.62516737]
[1732882387409,3.7776,3602.4,3601.7,4.62516737]
[1732882387703,0.7776,3602.4,3601.7,4.62516737]
[1732882387898,2.77595,3602.4,3601.8,0.74016974]
[1732882388135,5.77603,3602.3,3601.8,0.74016974]
[1732882388337,3.0,3602.3,3601.9,0.0698982]
[1732882388599,2.77608,3602.2,3601.9,0.0698982]
[1732882388969,2.77608,3602.2,3601.7,0.8296]
[1732882389308,2.776,3602.3,3601.8,0.43058147]
[1732882389485,5.79574212,3602.5,3601.8,0.43058147]
[1732882389677,2.77608,3602.2,3601.8,0.06996047]
[1732882390004,2.77608,3602.2,3601.7,0.8296]
[1732882390308,2.77595,3602.4,3601.7,0.8296]
[1732882390513,2.77616,3602.1,3601.8,0.06996047]
[1732882390668,2.77592,3602.4,3601.8,0.06996047]
[1732882390669,3.0,3602.3,3601.8,0.06996047]
[1732882391005,2.77614,3602.2,3601.9,0.0698982]
[1732882391405,2.77614,3602.2,3601.7,0.8296]
[1732882391610,2.77614,3602.2,3602.0,0.06983594]
[1732882391806,2.77592,3602.4,3601.7,4.54782257]
[1732882392018,0.01988212,3602.5,3602.1,0.06977368]
[1732882392192,0.01988212,3602.5,3601.9,2.77631]
[1732882392369,0.01988212,3602.5,3602.2,0.06971142]
[1732882392707,0.01988212,3602.5,3601.9,2.77631]
[1732882392911,2.77592,3602.4,3602.3,0.06963339]
[1732882393215,2.79574212,3602.5,3602.3,0.7671]
[1732882393512,2.79574212,3602.5,3602.3,0.83673339]
[1732882393513,0.01988212,3602.5,3602.3,0.83673339]
[1732882394599,0.01988212,3602.5,3602.3,0.06963339]
[1732882395095,0.01988212,3602.5,3601.9,4.56361583]
[1732882395291,2.79573212,3602.5,3602.4,0.06957114]
[1732882395498,0.01988212,3602.5,3602.0,1.03749916]
[1732882395700,0.01988212,3602.5,3602.4,0.06957114]
[1732882396411,0.01988212,3602.5,3602.1,3.03493574]
[1732882396571,0.01988212,3602.5,3602.4,0.06957114]
[1732882396770,0.01988212,3602.5,3602.1,3.03493574]
[1732882397074,0.01988212,3602.5,3602.2,0.82971014]
[1732882397420,0.01988212,3602.5,3602.3,3.53765]
[1732882397625,0.01988212,3602.5,3602.4,2.77592]
[1732882397840,0.01988212,3602.5,3602.4,2.8453759]
[1732882398393,0.01988212,3602.5,3602.4,3.5977759]
[1732882398611,0.01988212,3602.5,3602.4,4.61464351]
[1732882400300,0.01988212,3602.5,3602.4,1.83872351]
[1732882400499,0.01988212,3602.5,3602.4,0.8218559]
[1732882404941,2.79573212,3602.5,3602.4,0.0694559]
[1732882405434,2.77593,3602.4,3601.8,0.8165]
[1732882405646,2.79573212,3602.5,3601.8,3.59287]
[1732882405820,2.77593,3602.4,3601.9,0.0674721]
[1732882406003,2.77593,3602.4,3601.9,1.01465288]
[1732882407839,2.776,3602.3,3601.9,1.01465288]
[1732882409609,2.776,3602.3,3601.9,0.0674721]
[1732882410032,2.79573212,3602.5,3601.9,0.0674721]
[1732882410234,0.01988212,3602.5,3602.1,0.7615]
[1732882410411,2.79580212,3602.5,3602.1,0.7615]
[1732882410611,2.77593,3602.4,3602.2,0.06728532]
[1732882411224,0.01988212,3602.5,3602.2,0.06728532]
[1732882411415,2.77592,3602.4,3602.2,0.06728532]
[1732882411704,2.79577212,3602.5,3602.2,0.06728532]
[1732882413221,0.01988212,3602.5,3602.2,0.06728532]
[1732882414521,2.79573212,3602.5,3602.2,0.06728532]
[1732882417044,0.01988212,3602.5,3602.2,0.06728532]
[1732882417355,0.01988212,3602.5,3602.4,3.54552]
[1732882417655,0.01988212,3602.5,3602.4,3.61059199]
[1732882422633,0.01988212,3602.5,3602.4,6.64552773]
[1732882423033,0.01988212,3602.5,3602.4,3.61059199]
[1732882425156,0.01988212,3602.5,3602.4,0.83467199]
[1732882425359,0.01988212,3602.5,3602.4,1.47334119]
[1732882425534,0.01988212,3602.5,3602.4,0.06507199]
[1732882425920,0.01988212,3602.5,3602.1,0.7618]
[1732882426123,2.79573212,3602.5,3602.4,0.06497837]
[1732882426364,0.01988212,3602.5,3602.4,0.06498797]
[1732882426528,0.01988212,3602.5,3602.2,1.46583638]
[1732882426867,0.01988212,3602.5,3602.3,3.34140686]
[1732882427527,0.01988212,3602.5,3602.3,0.56542686]
[1732882428373,0.01988212,3602.5,3602.3,3.34141686]
[1732882428867,0.01988212,3602.5,3602.3,0.56542686]
[1732882429863,0.01988212,3602.5,3602.3,3.34141686]
[1732882430167,0.01988212,3602.5,3602.4,3.61043432]
[1732882430401,0.01988212,3602.5,3602.4,4.40253432]
[1732882430525,0.01988212,3602.5,3602.4,4.46752229]
[1732882431525,0.01988212,3602.5,3602.4,4.4952756]
[1732882431723,0.01988212,3602.5,3602.4,4.46752229]
[1732882433272,0.01988212,3602.5,3602.4,4.49527561]
[1732882433968,0.01988212,3602.5,3602.4,4.46752229]
[1732882435747,0.01988212,3602.5,3602.4,0.89950229]
[1732882438061,0.01988212,3602.5,3602.4,3.67542229]
[1732882438450,0.01988212,3602.5,3602.4,3.70317767]
[1732882438648,0.01988212,3602.5,3602.4,5.95471405]
[1732882438872,0.01988212,3602.5,3602.4,4.46112229]
[1732882439343,0.01988212,3602.5,3602.4,5.92695867]
[1732882439745,0.01988212,3602.5,3602.4,1.68520229]
[1732882440057,0.01988212,3602.5,3602.4,0.06498797]
[1732882440270,0.01988212,3602.5,3602.4,1.53082435]
[1732882440660,0.01988212,3602.5,3602.4,4.30674435]
[1732882442584,0.01988212,3602.5,3602.4,2.84090797]
[1732882442781,0.01988212,3602.5,3602.4,4.30674435]
[1732882442984,0.01988212,3602.5,3602.4,5.14363145]
[1732882444383,0.01988212,3602.5,3602.4,0.06498797]
[1732882444690,2.77597,3602.4,3601.8,1.46583638]
[1732882444986,0.81088212,3602.5,3601.8,4.24220638]
[1732882444987,2.77601,3602.3,3601.8,4.24220638]
[1732882445281,3.58675212,3602.5,3602.0,2.77623]
[1732882445640,0.81088212,3602.5,3602.1,1.53097508]
[1732882445850,0.01988212,3602.5,3602.2,3.20954648]
[1732882446256,0.01988212,3602.5,3602.3,0.06501419]
[1732882446659,0.01988212,3602.5,3602.2,3.20954648]
[1732882446890,0.01988212,3602.5,3602.4,0.06495194]
[1732882447057,0.01988212,3602.5,3602.3,0.06501419]
[1732882447264,0.01988212,3602.5,3602.4,0.06495194]
[1732882447587,0.01988212,3602.5,3602.4,3.59250542]
[1732882447907,0.01988212,3602.5,3602.4,5.0583418]
[1732882450285,0.01988212,3602.5,3602.4,3.59250542]
[1732882456862,0.01988212,3602.5,3602.4,1.62048542]
[1732882457078,0.01988212,3602.5,3602.4,0.81658542]
[1732882457286,0.01988212,3602.5,3602.4,3.59250542]
[1732882457491,0.01988212,3602.5,3602.4,0.81658542]
[1732882457657,0.01988212,3602.5,3602.4,3.59250542]
[1732882461062,0.01988212,3602.5,3602.4,4.39600542]
[1732882462696,0.01988212,3602.5,3602.4,7.42375956]
[1732882462858,0.01988212,3602.5,3602.4,7.39600542]
[1732882465960,0.01988212,3602.5,3602.4,6.59250542]
[1732882466617,0.01988212,3602.5,3602.4,0.81658542]
[1732882466757,2.79573212,3602.5,3602.4,0.06495194]
[1732882466968,2.79573212,3602.5,3602.1,2.77615]
[1732882466969,0.01988212,3602.5,3602.1,2.77615]
[1732882467270,0.01988212,3602.5,3602.2,0.06506444]
[1732882467667,2.77593,3602.4,3601.8,2.77635]
[1732882467891,2.77593,3602.4,3601.9,3.77541848]
[1732882469125,0.01988212,3602.5,3602.0,2.77619]
[1732882469256,2.79574212,3602.5,3602.0,2.77619]
[1732882469478,2.79574212,3602.5,3602.1,0.0651267]
[1732882469703,0.01988212,3602.5,3602.1,0.09288543]
[1732882470067,2.79573212,3602.5,3602.1,0.09288543]
[1732882470258,0.01988212,3602.5,3602.1,0.72305697]
[1732882470462,2.79573212,3602.5,3602.1,0.72305697]
[1732882470898,2.77594,3602.4,3602.1,0.72305697]
[1732882471267,2.77594,3602.4,3602.1,0.0651267]
[1732882471489,2.77594,3602.4,3601.9,3.71017725]
[1732882471697,2.77594,3602.4,3602.2,0.06510648]
[1732882471997,3.5618,3602.3,3601.7,2.77639]
[1732882472162,0.7858,3602.3,3601.8,3.054019]
[1732882472388,3.5618,3602.3,3601.8,3.054019]
[1732882473330,0.7858,3602.3,3601.8,0.277639]
[1732882474399,3.56186,3602.3,3601.8,0.277639]
[1732882474601,0.7858,3602.3,3601.8,0.277639]
[1732882475491,2.7761,3602.2,3601.8,0.277639]
[1732882475887,2.7761,3602.2,3601.9,0.45479587]
[1732882476389,2.7761,3602.2,3602.0,0.0652418]
[1732882476584,3.5618,3602.3,3602.0,0.0652418]
[1732882477212,0.7858,3602.3,3602.0,0.0652418]
[1732882477611,3.56183,3602.3,3602.0,0.0652418]
[1732882477816,0.01988212,3602.5,3602.0,3.22657864]
[1732882478148,2.79579212,3602.5,3602.0,0.0652418]
[1732882478627,2.77592,3602.4,3602.0,0.0652418]
[1732882480330,2.77615,3602.1,3602.0,0.0652418]
[1732882480544,2.77615,3602.1,3601.5,2.7766]
[1732882480743,2.77615,3602.1,3602.0,0.0652418]
[1732882480899,2.77615,3602.1,3601.5,2.7766]
[1732882481096,2.77615,3602.1,3602.0,0.0652418]
[1732882481327,2.77615,3602.1,3601.5,4.24276952]
[1732882481531,2.77615,3602.1,3602.0,0.0652418]
[1732882481718,2.77615,3602.1,3601.5,4.24276952]
[1732882481915,2.77615,3602.1,3602.0,0.0652418]
[1732882482119,0.8268,3602.4,3601.3,1.36473196]
[1732882482307,0.8268,3601.9,3601.5,4.24271952]
[1732882482517,0.8268,3601.9,3601.4,0.06361417]
[1732882482815,3.60315,3601.9,3601.5,0.06355188]
[1732882483013,3.60315,3601.9,3601.3,2.77671]
[1732882483320,0.8268,3601.9,3601.4,2.84030417]
[1732882483501,0.8268,3601.9,3601.5,4.24275952]
[1732882484039,0.8268,3601.9,3601.6,0.0634896]
[1732882484414,0.8268,3601.9,3601.4,2.77667]
[1732882484741,0.8268,3601.9,3601.7,0.06342733]
[1732882484913,0.8268,3601.9,3601.4,2.77667]
[1732882485115,0.8268,3601.9,3601.4,3.63847245]
[1732882485316,0.8268,3601.9,3601.5,0.06355188]
[1732882486645,2.77654,3601.6,3601.5,0.06355188]
[1732882486833,2.77646,3601.8,3601.2,4.24295952]
[1732882487140,2.77646,3601.8,3601.3,0.06367645]
[1732882487502,2.77647,3601.7,3601.2,4.24295952]
[1732882487740,2.77647,3601.7,3601.4,0.06361417]
[1732882487966,2.77647,3601.7,3601.3,0.06367645]
[1732882488110,2.77647,3601.7,3601.5,0.06355188]
[1732882488313,2.77647,3601.7,3601.4,0.06361417]
[1732882488625,2.77647,3601.7,3601.5,0.06355188]
[1732882488846,2.77647,3601.7,3601.1,0.7654]
[1732882489016,5.55301,3601.7,3601.6,0.0634896]
[1732882489214,2.77656,3601.6,3601.1,0.7654]
[1732882490355,0.7646,3601.7,3601.1,0.83311507]
[1732882490658,2.77744,3600.5,3599.9,2.77783]
[1732882490817,2.77744,3600.5,3599.7,4.24416952]
[1732882490818,2.77757,3600.3,3599.7,4.24416952]
[1732882491023,2.77755,3600.3,3599.7,4.24416952]
[1732882491537,2.77755,3600.3,3599.8,0.06471989]
[1732882491842,2.77755,3600.3,3599.9,0.50791894]
[1732882492045,2.77755,3600.3,3599.9,0.5725765]
[1732882492351,2.77763,3600.2,3599.9,0.06465756]
[1732882493331,2.77812,3599.6,3599.3,0.54424187]
[1732882493662,0.7974,3599.5,3598.6,2.77879]
[1732882493954,0.7974,3599.5,3599.4,0.06317928]
[1732882493955,3.57556,3599.5,3599.4,0.06317928]
[1732882494253,0.7974,3599.5,3598.8,0.55663627]
[1732882494451,3.57556,3599.5,3599.4,0.06317928]
[1732882494629,2.77829,3599.4,3598.8,0.55663627]
[1732882494947,2.77832,3599.3,3598.8,0.55663627]
[1732882495154,2.77832,3599.3,3598.9,0.0634911]
[1732882495561,2.77832,3599.3,3598.7,2.77873]
[1732882495863,2.77832,3599.3,3599.0,0.06342873]
[1732882496033,2.77832,3599.3,3598.7,3.716855]
[1732882496357,2.77832,3599.3,3599.1,0.06336636]
[1732882496530,2.77832,3599.3,3598.7,2.77873]
[1732882496719,2.77832,3599.3,3599.2,0.063304]
[1732882496914,2.77832,3599.3,3598.7,2.77873]
[1732882497254,2.77832,3599.3,3598.7,3.716855]
[1732882497455,2.77832,3599.3,3598.8,0.06355347]
[1732882498729,2.77824,3599.4,3598.8,2.84219347]
[1732882499246,2.77839,3599.3,3598.8,0.06355347]
[1732882499424,2.77854,3599.1,3598.5,3.55691417]
[1732882499753,2.7786,3599.0,3598.6,0.06367822]
[1732882501124,2.77833,3599.3,3598.6,0.06367822]
[1732882501125,2.77847,3599.1,3598.6,0.06367822]
[1732882501334,2.77833,3599.3,3598.7,2.77876]
[1732882501628,3.57557,3599.5,3598.8,0.06374749]
[1732882502039,2.7784,3599.2,3598.6,2.77885]
[1732882502353,2.77829,3599.4,3598.7,0.06380987]
[1732882502514,0.7974,3599.5,3598.7,0.06380987]
[1732882502718,0.7849,3599.8,3598.9,2.77862]
[1732882502978,3.56285,3599.8,3599.1,2.77843]
[1732882503138,3.56285,3599.8,3599.2,2.77838]
[1732882503349,3.56285,3599.8,3599.2,2.84187802]
[1732882503528,3.56283,3599.8,3599.2,0.06349802]
[1732882503728,0.7849,3599.8,3599.3,2.7783]
[1732882504161,0.7849,3599.8,3599.1,2.77843]
[1732882504162,3.56283,3599.8,3599.4,0.06153362]
[1732882504567,3.56283,3599.8,3599.1,2.77841]
[1732882504869,0.7849,3599.8,3599.1,0.633621]
[1732882505030,3.56285,3599.8,3599.2,2.83998833]
[1732882506261,0.7849,3599.8,3599.3,2.77829]
[1732882506447,2.77771,3600.1,3599.4,0.06153362]
[1732882506769,2.77771,3600.1,3599.5,2.77809]
[1732882506770,0.7836,3600.1,3599.5,2.77809]
[1732882507267,3.56132,3600.1,3599.6,0.06140892]
[1732882507570,0.7836,3600.1,3599.6,0.06140892]
[1732882507725,0.7836,3600.1,3599.6,2.83947892]
[1732882508775,2.77763,3600.2,3599.7,3.42262889]
[1732882509073,2.77763,3600.2,3599.8,0.06128423]
[1732882509232,2.77763,3600.2,3599.7,2.778]
[1732882509426,2.77763,3600.2,3599.8,0.06128423]
[1732882509627,2.77763,3600.2,3599.7,2.778]
[1732882509946,2.77763,3600.2,3599.8,0.06128423]
[1732882510266,2.77763,3600.2,3599.5,2.77813]
[1732882510474,2.77773,3600.1,3599.6,0.06140892]
[1732882511874,3.59467,3600.4,3599.6,0.06140892]
[1732882512037,0.359467,3600.3,3599.6,0.06140892]
[1732882513375,0.8172,3600.4,3599.8,2.7779]
[1732882513680,0.8172,3600.4,3599.9,2.83893843]
[1732882514276,0.8172,3600.4,3599.9,0.06114843]
[1732882515359,0.8172,3600.4,3599.6,2.77808]
[1732882515572,0.8172,3600.4,3600.0,0.06101028]
[1732882515740,0.63719,3600.3,3599.6,2.77808]
[1732882515935,0.63719,3600.3,3600.1,0.06094795]
[1732882516252,0.63719,3600.3,3600.2,0.06088562]
[1732882516456,0.63719,3600.3,3599.6,2.77808]
[1732882516644,0.8172,3600.4,3599.7,0.06119729]
[1732882517247,3.59472,3600.4,3599.5,2.77814]
[1732882517442,3.59472,3600.4,3599.6,0.06125964]
[1732882517643,2.77754,3600.3,3599.6,0.06125964]
[1732882517853,0.8172,3600.4,3599.6,2.83933964]
[1732882518557,0.8172,3600.4,3599.6,0.06125964]
[1732882518761,1.176654,3600.4,3599.6,0.06125964]
[1732882518965,1.176654,3600.4,3599.5,2.7781]
[1732882519168,1.176654,3600.4,3599.7,0.06119729]
[1732882519344,0.8172,3600.4,3599.7,2.77799]
[1732882519547,0.8172,3600.4,3599.8,0.06113495]
[1732882520380,2.77755,3600.3,3599.8,0.06113495]
[1732882520587,2.77755,3600.3,3599.5,2.7781]
[1732882520761,2.77755,3600.3,3599.9,0.06092963]
[1732882521089,2.77755,3600.3,3600.0,0.06086729]
[1732882521395,2.77755,3600.3,3599.5,2.7781]
[1732882521606,2.77755,3600.3,3600.1,0.06080496]
[1732882521797,0.637219,3600.2,3599.4,3.60679]
[1732882522096,2.77768,3600.2,3599.5,0.061179]
[1732882522250,2.77786,3599.9,3599.1,2.77841]
[1732882522449,3.54676,3600.1,3599.6,0.06110955]
[1732882522666,3.54676,3600.1,3599.1,2.77841]
[1732882522881,2.77778,3600.0,3599.7,0.06105312]
[1732882523055,0.632444,3599.9,3599.1,2.77841]
[1732882523255,2.77778,3600.0,3599.8,0.06099078]
[1732882523562,2.77778,3600.0,3599.2,2.77839]
[1732882523960,0.769,3600.1,3599.3,0.06130252]
[1732882524172,0.769,3600.1,3599.5,2.77815]
[1732882524583,6.03553899,3600.9,3599.8,2.77791]
[1732882524584,0.7998,3600.4,3599.8,2.77791]
[1732882524984,0.7998,3600.4,3599.9,0.06093911]
[1732882525381,0.7998,3600.4,3599.7,2.77796]
[1732882525588,0.7998,3600.4,3600.0,0.06087677]
[1732882525751,0.7998,3600.4,3599.7,2.77796]
[1732882525963,0.7998,3600.4,3600.1,0.06081444]
[1732882526155,0.7998,3600.4,3599.7,2.77796]
[1732882526356,0.7998,3600.4,3600.2,0.06075211]
[1732882526577,0.7998,3600.4,3599.7,2.77796]
[1732882526802,0.7998,3600.4,3600.3,0.06068979]
[1732882526956,0.7998,3600.4,3599.9,2.7778]
[1732882527159,0.7932,3600.7,3600.3,0.06068979]
[1732882527357,0.7932,3600.7,3600.0,2.77772]
[1732882527557,0.7932,3600.7,3600.4,0.06062747]
[1732882527754,1.23834949,3600.7,3600.1,2.77768]
[1732882527980,0.7932,3600.7,3600.5,0.06056515]
[1732882528196,0.7932,3600.7,3600.1,2.77768]
[1732882528396,0.7932,3600.7,3600.6,0.06050284]
[1732882528899,0.7932,3600.7,3600.1,3.57178]
[1732882529262,0.8266,3601.0,3600.3,2.77749]
[1732882529571,0.8266,3601.0,3600.4,0.06058601]
[1732882530316,0.8266,3601.0,3600.5,2.77734]
[1732882530469,0.55,3601.2,3600.5,2.77734]
[1732882530674,0.610344,3601.2,3600.6,0.06041875]
[1732882531682,0.610344,3601.2,3600.6,2.83772875]
[1732882531884,0.8266,3601.3,3600.6,0.06041875]
[1732882532108,3.6034,3601.3,3600.6,0.06041875]
[1732882533185,0.8266,3601.3,3600.5,2.77734]
[1732882533512,0.8266,3601.3,3600.6,0.06041875]
[1732882534285,3.60339,3601.3,3600.6,0.06041875]
[1732882534484,3.60339,3601.3,3600.3,2.77747]
[1732882534485,4.2414,3601.3,3600.4,2.7774]
[1732882534699,0.8266,3601.3,3600.7,2.83753644]
[1732882535010,0.8266,3601.3,3600.7,3.55008]
[1732882535194,0.8266,3601.3,3600.8,0.06029413]
[1732882535711,0.8266,3601.3,3600.9,0.06023183]
[1732882535920,0.8266,3601.3,3600.7,0.7729]
[1732882536073,0.8266,3601.3,3601.0,0.06016953]
[1732882536274,0.8266,3601.3,3600.7,0.7729]
[1732882536480,0.55,3601.2,3601.1,0.06010723]
[1732882536800,0.55,3601.2,3600.5,3.52997]
[1732882536999,0.55,3601.2,3601.1,0.06010723]
[1732882537202,0.55,3601.2,3600.5,3.52997]
[1732882537385,0.55,3601.2,3601.1,0.06010723]
[1732882537588,0.55,3601.2,3600.5,3.52997]
[1732882537815,0.55,3601.2,3601.1,0.06010723]
[1732882538004,0.55,3601.2,3600.5,3.52997]
[1732882538508,0.55,3601.2,3600.6,0.06041875]
[1732882538715,0.55,3601.2,3600.4,2.77742]
[1732882538897,0.55,3601.2,3600.7,0.06035644]
[1732882539084,0.55,3601.2,3600.5,2.77737]
[1732882539286,0.55,3601.2,3600.8,0.06029413]
[1732882539613,0.965324,3601.2,3600.6,2.7773]
[1732882539812,0.55,3601.2,3600.6,2.7773]
[1732882540012,0.55,3601.2,3600.7,0.06024627]
[1732882541399,0.55,3601.2,3600.5,2.77737]
[1732882541591,0.55,3601.2,3600.8,0.06018396]